{"text_format":"3","workbook":"xlsx","n_sheets":1,"sheets":["Verenpaine ja verensokeri"],"not_rendered":{"defined_names":9},"read":"whole","date_system":"1900"}

{"sheet":"Verenpaine ja verensokeri","index":0,"n_rows":13,"n_cols":11,"rows_kept":13,"merged":[[0,1,4,3],[0,4,0,9],[1,4,1,6],[1,7,1,9]]}
[null,"Verenpaineen ja verensokerin seuranta",null,null,"Voit mukauttaa asteikon arvoja soluissa E2–J5 alla."]
[{"$nulls":4},"VERENPAINE",null,null,"VERENSOKERIASTEIKKO"]
[{"$nulls":4},120,"SYSTOLINEN",140,70,100,150]
[{"$nulls":4},80,"DIASTOLINEN",90,"MATALA","NORMAALI","KORKEA"]
[{"$nulls":4},"TAVOITEPAINE",null,"SOITA LÄÄKÄRILLE"]
[null,"Päivämäärä","Aika","Tapahtuma","Systolinen","Diastolinen","Syke","Verensokeri","Taso","Tila","Muistiinpanot"]
[null,{"$f":"TODAY()","v":"2022-08-03"},"06:00:00","Aamulla",129,79,72,55,{"$f":"VerenpaineJaVerensokeri[[#This Row],[Verensokeri]]","v":55},{"$f":"IFERROR(IF(VerenpaineJaVerensokeri[[#This Row],[Taso]]=0,\"\",IF(VerenpaineJaVerensokeri[[#This Row],[Taso]]<=Sokeri_matala,\"Matala\",IF(AND(VerenpaineJaVerensokeri[[#This Row],[Taso]]>Sokeri_matala,VerenpaineJaVerensokeri[[#This Row],[Taso]]<Sokeri_korkea),\"Normaali\",\"Korkea\"))), \"\")","v":"Matala"}]
[null,{"$f":"TODAY()","v":"2022-08-03"},"07:00:00","Ennen ateriaa",120,80,74,70,{"$f":"VerenpaineJaVerensokeri[[#This Row],[Verensokeri]]","v":70},{"$f":"IFERROR(IF(VerenpaineJaVerensokeri[[#This Row],[Taso]]=0,\"\",IF(VerenpaineJaVerensokeri[[#This Row],[Taso]]<=Sokeri_matala,\"Matala\",IF(AND(VerenpaineJaVerensokeri[[#This Row],[Taso]]>Sokeri_matala,VerenpaineJaVerensokeri[[#This Row],[Taso]]<Sokeri_korkea),\"Normaali\",\"Korkea\"))), \"\")","v":"Matala"}]
[null,"2022-08-03","09:00:00","Aterian jälkeen",133,80,75,75,{"$f":"VerenpaineJaVerensokeri[[#This Row],[Verensokeri]]","v":75},{"$f":"IFERROR(IF(VerenpaineJaVerensokeri[[#This Row],[Taso]]=0,\"\",IF(VerenpaineJaVerensokeri[[#This Row],[Taso]]<=Sokeri_matala,\"Matala\",IF(AND(VerenpaineJaVerensokeri[[#This Row],[Taso]]>Sokeri_matala,VerenpaineJaVerensokeri[[#This Row],[Taso]]<Sokeri_korkea),\"Normaali\",\"Korkea\"))), \"\")","v":"Normaali"}]
[null,"2022-08-03","10:00:00","Vain verenpaine",143,91,75,190,{"$f":"VerenpaineJaVerensokeri[[#This Row],[Verensokeri]]","v":190},{"$f":"IFERROR(IF(VerenpaineJaVerensokeri[[#This Row],[Taso]]=0,\"\",IF(VerenpaineJaVerensokeri[[#This Row],[Taso]]<=Sokeri_matala,\"Matala\",IF(AND(VerenpaineJaVerensokeri[[#This Row],[Taso]]>Sokeri_matala,VerenpaineJaVerensokeri[[#This Row],[Taso]]<Sokeri_korkea),\"Normaali\",\"Korkea\"))), \"\")","v":"Korkea"}]
[null,"2022-08-03","12:00:00","Ennen ateriaa",141,84,70,140,{"$f":"VerenpaineJaVerensokeri[[#This Row],[Verensokeri]]","v":140},{"$f":"IFERROR(IF(VerenpaineJaVerensokeri[[#This Row],[Taso]]=0,\"\",IF(VerenpaineJaVerensokeri[[#This Row],[Taso]]<=Sokeri_matala,\"Matala\",IF(AND(VerenpaineJaVerensokeri[[#This Row],[Taso]]>Sokeri_matala,VerenpaineJaVerensokeri[[#This Row],[Taso]]<Sokeri_korkea),\"Normaali\",\"Korkea\"))), \"\")","v":"Normaali"}]
[null,{"$f":"TODAY()","v":"2022-08-03"},"15:00:00","Aterian jälkeen",132,80,68,90,{"$f":"VerenpaineJaVerensokeri[[#This Row],[Verensokeri]]","v":90},{"$f":"IFERROR(IF(VerenpaineJaVerensokeri[[#This Row],[Taso]]=0,\"\",IF(VerenpaineJaVerensokeri[[#This Row],[Taso]]<=Sokeri_matala,\"Matala\",IF(AND(VerenpaineJaVerensokeri[[#This Row],[Taso]]>Sokeri_matala,VerenpaineJaVerensokeri[[#This Row],[Taso]]<Sokeri_korkea),\"Normaali\",\"Korkea\"))), \"\")","v":"Normaali"},"Verenpainelääke otettu aterian yhteydessä"]
[null,"Keskiarvot",null,null,{"$f":"SUBTOTAL(101,VerenpaineJaVerensokeri[Systolinen])","v":133},{"$f":"SUBTOTAL(101,VerenpaineJaVerensokeri[Diastolinen])","v":{"v":82.33333333333333,"d":"82"}},{"$f":"SUBTOTAL(101,VerenpaineJaVerensokeri[Syke])","v":{"v":72.33333333333333,"d":"72"}},{"$f":"SUBTOTAL(101,VerenpaineJaVerensokeri[Verensokeri])","v":{"v":103.33333333333333,"d":"103"}}]